[Event "*** MasterClass Titled Tuesday Blitz"]
[Site "Chess.com"]
[Date "2017.09.05"]
[Round "3"]
[White "Alexander_Moskalenko"]
[Black "temiksmozg"]
[Result "1/2-1/2"]
[WhiteElo "2661"]
[BlackElo "2420"]
[TimeControl "180+2"]
[EndTime "13:45:23 PDT"]
[Termination "Game drawn - insufficient material"]

1. e4 {[%clk 0:03:01.9]} 1... e6 {[%clk 0:03:00.6]} 2. d3 {[%clk 0:03:02.4]}
2... d5 {[%clk 0:03:01.5]} 3. Nd2 {[%clk 0:03:04.3]} 3... c5 {[%clk 0:03:01.9]}
4. Ngf3 {[%clk 0:03:05.7]} 4... Nc6 {[%clk 0:03:03.4]} 5. g3 {[%clk 0:03:06.3]}
5... g6 {[%clk 0:03:04.1]} 6. Bg2 {[%clk 0:03:07.9]} 6... Bg7 {[%clk 0:03:05.7]}
7. O-O {[%clk 0:03:09.6]} 7... Nge7 {[%clk 0:03:07.2]} 8. Re1 {[%clk 0:03:11.2]}
8... h6 {[%clk 0:03:08]} 9. h4 {[%clk 0:03:06.1]} 9... b6 {[%clk 0:03:07.6]} 10.
exd5 {[%clk 0:02:58.8]} 10... exd5 {[%clk 0:03:04.8]} 11. Nb3 {[%clk 0:02:45.4]}
11... Bg4 {[%clk 0:03:01.8]} 12. c3 {[%clk 0:02:44.6]} 12... O-O {[%clk
0:02:59]} 13. Bf4 {[%clk 0:02:45.5]} 13... d4 {[%clk 0:02:56.2]} 14. cxd4 {[%clk
0:02:37.5]} 14... cxd4 {[%clk 0:02:43.9]} 15. Rc1 {[%clk 0:02:27.2]} 15... Rc8
{[%clk 0:02:44.6]} 16. Qd2 {[%clk 0:02:14.5]} 16... Kh7 {[%clk 0:02:40.2]} 17.
Nh2 {[%clk 0:01:52.4]} 17... Be6 {[%clk 0:02:37.4]} 18. Qd1 {[%clk 0:01:44.6]}
18... Qd7 {[%clk 0:02:26.5]} 19. a3 {[%clk 0:01:44.2]} 19... Nd5 {[%clk
0:02:12]} 20. Bd2 {[%clk 0:01:41.2]} 20... Rfe8 {[%clk 0:02:03.9]} 21. Rc2
{[%clk 0:01:34.8]} 21... Ne5 {[%clk 0:01:59.1]} 22. Nc1 {[%clk 0:01:29.6]} 22...
Rcd8 {[%clk 0:01:41.5]} 23. Re4 {[%clk 0:01:17.7]} 23... Nc6 {[%clk 0:01:22.4]}
24. Ne2 {[%clk 0:01:07]} 24... f5 {[%clk 0:01:14.9]} 25. Rxe6 {[%clk 0:00:59.9]}
25... Qxe6 {[%clk 0:01:16.8]} 26. Nf4 {[%clk 0:01:01.5]} 26... Nxf4 {[%clk
0:00:28]} 27. Rxc6 {[%clk 0:01:02.4]} 27... Qe2 {[%clk 0:00:29.3]} 28. Qxe2
{[%clk 0:01:03.8]} 28... Nxe2+ {[%clk 0:00:28.6]} 29. Kf1 {[%clk 0:01:05.3]}
29... Be5 {[%clk 0:00:15.3]} 30. Bf3 {[%clk 0:00:32.8]} 30... Nxg3+ {[%clk
0:00:11.7]} 31. fxg3 {[%clk 0:00:34.7]} 31... Bxg3 {[%clk 0:00:13.6]} 32. Kg2
{[%clk 0:00:36.1]} 32... Bxh4 {[%clk 0:00:13.8]} 33. b4 {[%clk 0:00:30.3]} 33...
Re7 {[%clk 0:00:14.3]} 34. b5 {[%clk 0:00:30.5]} 34... Bg5 {[%clk 0:00:15.6]}
35. Bb4 {[%clk 0:00:30.7]} 35... Red7 {[%clk 0:00:13.7]} 36. Nf1 {[%clk
0:00:31.5]} 36... Re8 {[%clk 0:00:14]} 37. Rc2 {[%clk 0:00:25.6]} 37... Red8
{[%clk 0:00:11.6]} 38. Ng3 {[%clk 0:00:24.2]} 38... Bf4 {[%clk 0:00:11.2]} 39.
Ne2 {[%clk 0:00:25.2]} 39... Be3 {[%clk 0:00:12.6]} 40. Rc6 {[%clk 0:00:26]}
40... h5 {[%clk 0:00:13.3]} 41. Kh3 {[%clk 0:00:25.8]} 41... Kh6 {[%clk
0:00:14]} 42. Ng3 {[%clk 0:00:26.9]} 42... Kh7 {[%clk 0:00:14.4]} 43. a4 {[%clk
0:00:26.3]} 43... Rf7 {[%clk 0:00:15.3]} 44. Ne2 {[%clk 0:00:23.8]} 44... f4
{[%clk 0:00:15]} 45. Be4 {[%clk 0:00:23.2]} 45... Rg7 {[%clk 0:00:13.9]} 46. Rf6
{[%clk 0:00:21]} 46... Kh6 {[%clk 0:00:13.1]} 47. Nxf4 {[%clk 0:00:20.3]} 47...
Kg5 {[%clk 0:00:11.5]} 48. Rxg6+ {[%clk 0:00:21.7]} 48... Rxg6 {[%clk 0:00:13]}
49. Nxg6 {[%clk 0:00:23.6]} 49... Re8 {[%clk 0:00:13.5]} 50. Be7+ {[%clk
0:00:22.3]} 50... Kh6 {[%clk 0:00:13.5]} 51. Bf8+ {[%clk 0:00:19]} 51... Kg5
{[%clk 0:00:14.3]} 52. Be7+ {[%clk 0:00:20.4]} 52... Kh6 {[%clk 0:00:15.7]} 53.
Nh4 {[%clk 0:00:18.5]} 53... Kg7 {[%clk 0:00:11.9]} 54. Nf5+ {[%clk 0:00:19.6]}
54... Kf7 {[%clk 0:00:13.2]} 55. Bb4 {[%clk 0:00:20.4]} 55... Kf6 {[%clk
0:00:11.7]} 56. Kh4 {[%clk 0:00:20]} 56... Rxe4+ {[%clk 0:00:10.4]} 57. dxe4
{[%clk 0:00:20.7]} 57... Ke5 {[%clk 0:00:12.3]} 58. Kxh5 {[%clk 0:00:19.3]}
58... Kxe4 {[%clk 0:00:11.9]} 59. Kg4 {[%clk 0:00:20.9]} 59... Bf2 {[%clk
0:00:10.4]} 60. Nd6+ {[%clk 0:00:21.3]} 60... Kd5 {[%clk 0:00:11.3]} 61. Kf5
{[%clk 0:00:21.6]} 61... d3 {[%clk 0:00:12.2]} 62. Bd2 {[%clk 0:00:22.4]} 62...
Kxd6 {[%clk 0:00:12.2]} 63. Ke4 {[%clk 0:00:24.1]} 63... Kc5 {[%clk 0:00:10.3]}
64. Kxd3 {[%clk 0:00:25.5]} 64... Kd5 {[%clk 0:00:11.3]} 65. Bf4 {[%clk
0:00:24.5]} 65... Ke6 {[%clk 0:00:09.9]} 66. Bb8 {[%clk 0:00:24.6]} 66... Kd7
{[%clk 0:00:11.2]} 67. Bxa7 {[%clk 0:00:26.2]} 67... Kc7 {[%clk 0:00:09.6]} 68.
a5 {[%clk 0:00:27.3]} 68... Kb7 {[%clk 0:00:08.6]} 69. Bxb6 {[%clk 0:00:26.5]}
69... Bxb6 {[%clk 0:00:09.8]} 70. axb6 {[%clk 0:00:28.2]} 70... Kxb6 {[%clk
0:00:11.7]} 71. Kc4 {[%clk 0:00:30]} 71... Kb7 {[%clk 0:00:12.2]} 72. Kc5 {[%clk
0:00:31.9]} 72... Kc7 {[%clk 0:00:13.3]} 73. b6+ {[%clk 0:00:33.8]} 73... Kb7
{[%clk 0:00:14.3]} 74. Kb5 {[%clk 0:00:35.7]} 74... Kb8 {[%clk 0:00:15]} 75. Ka6
{[%clk 0:00:37.1]} 75... Ka8 {[%clk 0:00:15.8]} 76. Ka5 {[%clk 0:00:39]} 76...
Kb7 {[%clk 0:00:16.4]} 77. Kb5 {[%clk 0:00:40.9]} 77... Kb8 {[%clk 0:00:17.6]}
78. Kc6 {[%clk 0:00:42.8]} 78... Kc8 {[%clk 0:00:18.6]} 79. b7+ {[%clk
0:00:44.7]} 79... Kb8 {[%clk 0:00:19.7]} 80. Kd7 {[%clk 0:00:46.6]} 80... Kxb7
{[%clk 0:00:20.3]} 1/2-1/2

[Event "*** MasterClass Titled Tuesday Blitz"]
[Site "Chess.com"]
[Date "2017.09.05"]
[Round "3"]
[White "cheese111"]
[Black "MyleneFarmer"]
[Result "1/2-1/2"]
[WhiteElo "2313"]
[BlackElo "2427"]
[TimeControl "180+2"]
[EndTime "13:46:48 PDT"]
[Termination "Game drawn - insufficient material"]

1. e4 {[%clk 0:03:02]} 1... e6 {[%clk 0:02:55.8]} 2. d4 {[%clk 0:03:02.5]} 2...
d5 {[%clk 0:02:54.6]} 3. Nd2 {[%clk 0:03:03.9]} 3... Be7 {[%clk 0:02:52.9]} 4.
Ngf3 {[%clk 0:03:04.4]} 4... Nf6 {[%clk 0:02:50.8]} 5. e5 {[%clk 0:03:05.5]}
5... Nfd7 {[%clk 0:02:48.2]} 6. Bd3 {[%clk 0:03:07]} 6... c5 {[%clk 0:02:47.7]}
7. c3 {[%clk 0:03:08.5]} 7... Nc6 {[%clk 0:02:48]} 8. O-O {[%clk 0:03:09.1]}
8... h5 {[%clk 0:02:47.9]} 9. Re1 {[%clk 0:02:56.5]} 9... g5 {[%clk 0:02:46.4]}
10. dxc5 {[%clk 0:02:57]} 10... Nxc5 {[%clk 0:02:43.9]} 11. Bb5 {[%clk
0:02:52.3]} 11... Nd7 {[%clk 0:02:15.4]} 12. c4 {[%clk 0:02:40.2]} 12... a6
{[%clk 0:01:59.8]} 13. cxd5 {[%clk 0:02:39]} 13... axb5 {[%clk 0:01:55.1]} 14.
dxc6 {[%clk 0:02:34.9]} 14... bxc6 {[%clk 0:01:54]} 15. Nd4 {[%clk 0:02:21.5]}
15... Nxe5 {[%clk 0:01:46.2]} 16. N2b3 {[%clk 0:02:14.4]} 16... Bd6 {[%clk
0:01:31]} 17. f4 {[%clk 0:02:08]} 17... gxf4 {[%clk 0:01:00.8]} 18. Bxf4 {[%clk
0:02:10]} 18... Ng4 {[%clk 0:01:01.5]} 19. Nxe6 {[%clk 0:01:16]} 19... Qb6+
{[%clk 0:00:55.9]} 20. Qd4 {[%clk 0:01:16.5]} 20... Qxd4+ {[%clk 0:00:43.4]} 21.
Nexd4+ {[%clk 0:00:54.9]} 21... Kd7 {[%clk 0:00:38.9]} 22. Nf5 {[%clk 0:00:42]}
22... Bxf4 {[%clk 0:00:37.7]} 23. Re7+ {[%clk 0:00:42.5]} 23... Kd8 {[%clk
0:00:31.7]} 24. Rd1+ {[%clk 0:00:44.5]} 24... Bd7 {[%clk 0:00:32.8]} 25. Rdxd7+
{[%clk 0:00:39.8]} 25... Kc8 {[%clk 0:00:32.7]} 26. Rxf7 {[%clk 0:00:21.3]}
26... Rxa2 {[%clk 0:00:32.2]} 27. g3 {[%clk 0:00:17.6]} 27... Bb8 {[%clk
0:00:29.5]} 28. Rd2 {[%clk 0:00:04.9]} 28... Ba7+ {[%clk 0:00:28]} 29. Kg2
{[%clk 0:00:05.4]} 29... Ne5 {[%clk 0:00:21.1]} 30. Nd6+ {[%clk 0:00:05.6]}
30... Kb8 {[%clk 0:00:22]} 31. Rf5 {[%clk 0:00:06.2]} 31... Nc4 {[%clk
0:00:19.7]} 32. Nxc4 {[%clk 0:00:07.2]} 32... bxc4 {[%clk 0:00:20.3]} 33. Na5
{[%clk 0:00:05.9]} 33... c3 {[%clk 0:00:20.9]} 34. Nxc6+ {[%clk 0:00:06.5]}
34... Kc7 {[%clk 0:00:16.6]} 35. Rc2 {[%clk 0:00:03.7]} 35... Rxb2 {[%clk
0:00:16.5]} 36. Rxb2 {[%clk 0:00:03.1]} 36... cxb2 {[%clk 0:00:17.2]} 37. Rb5
{[%clk 0:00:05.1]} 37... Kxc6 {[%clk 0:00:17.9]} 38. Rxb2 {[%clk 0:00:06.2]}
38... Rf8 {[%clk 0:00:18.9]} 39. Re2 {[%clk 0:00:07.1]} 39... Kd5 {[%clk
0:00:19.5]} 40. Re7 {[%clk 0:00:07.2]} 40... Bd4 {[%clk 0:00:15]} 41. Kh3 {[%clk
0:00:07.4]} 41... Bf6 {[%clk 0:00:14]} 42. Re2 {[%clk 0:00:07.6]} 42... Be5
{[%clk 0:00:14.5]} 43. Kh4 {[%clk 0:00:08.7]} 43... Rf5 {[%clk 0:00:15.2]} 44.
Kh3 {[%clk 0:00:08.9]} 44... Ke6 {[%clk 0:00:14.9]} 45. g4 {[%clk 0:00:07.2]}
45... Rf3+ {[%clk 0:00:15.1]} 46. Kh4 {[%clk 0:00:08.3]} 46... Rf4 {[%clk
0:00:15.7]} 47. Kxh5 {[%clk 0:00:09]} 47... Kf6 {[%clk 0:00:16]} 48. h4 {[%clk
0:00:08.9]} 48... Ra4 {[%clk 0:00:12.9]} 49. g5+ {[%clk 0:00:08.6]} 49... Kf5
{[%clk 0:00:13.9]} 50. Rf2+ {[%clk 0:00:09.2]} 50... Bf4 {[%clk 0:00:14.5]} 51.
Kh6 {[%clk 0:00:09.1]} 51... Ra6+ {[%clk 0:00:12.8]} 52. Kg7 {[%clk 0:00:10]}
52... Ra7+ {[%clk 0:00:11.1]} 53. Kf8 {[%clk 0:00:11.2]} 53... Kg4 {[%clk
0:00:07.5]} 54. g6 {[%clk 0:00:10.3]} 54... Bh6+ {[%clk 0:00:07.4]} 55. Ke8
{[%clk 0:00:09.3]} 55... Kh5 {[%clk 0:00:06.3]} 56. Rf6 {[%clk 0:00:07.3]} 56...
Bg7 {[%clk 0:00:04.1]} 57. Re6 {[%clk 0:00:06.7]} 57... Kh6 {[%clk 0:00:04.5]}
58. Rd6 {[%clk 0:00:04.7]} 58... Ra8+ {[%clk 0:00:04.9]} 59. Kf7 {[%clk
0:00:05.4]} 59... Ra7+ {[%clk 0:00:05.9]} 60. Ke8 {[%clk 0:00:06.6]} 60... Ra8+
{[%clk 0:00:07.6]} 61. Kf7 {[%clk 0:00:08]} 61... Rf8+ {[%clk 0:00:09.2]} 62.
Ke7 {[%clk 0:00:09.1]} 62... Rf5 {[%clk 0:00:10.2]} 63. Re6 {[%clk 0:00:10.1]}
63... Rh5 {[%clk 0:00:11.4]} 64. Kf7 {[%clk 0:00:10.4]} 64... Rxh4 {[%clk
0:00:12.5]} 65. Ke8 {[%clk 0:00:11.8]} 65... Rf4 {[%clk 0:00:13.1]} 66. Ke7
{[%clk 0:00:13.1]} 66... Rf5 {[%clk 0:00:13.6]} 67. Ke8 {[%clk 0:00:14.2]} 67...
Bf6 {[%clk 0:00:14.8]} 68. Kf7 {[%clk 0:00:14.7]} 68... Bg7+ {[%clk 0:00:15.7]}
69. Ke8 {[%clk 0:00:15.9]} 69... Kg5 {[%clk 0:00:16]} 70. Ke7 {[%clk 0:00:17.3]}
70... Kh5 {[%clk 0:00:16.7]} 71. Ke8 {[%clk 0:00:18.6]} 71... Kh6 {[%clk
0:00:17.8]} 72. Ke7 {[%clk 0:00:19.8]} 72... Ra5 {[%clk 0:00:18.9]} 73. Ke8
{[%clk 0:00:21]} 73... Ra8+ {[%clk 0:00:19.9]} 74. Ke7 {[%clk 0:00:21.9]} 74...
Ra7+ {[%clk 0:00:20.4]} 75. Ke8 {[%clk 0:00:23.2]} 75... Bd4 {[%clk 0:00:17.8]}
76. Kf8 {[%clk 0:00:23.3]} 76... Bc5+ {[%clk 0:00:17.1]} 77. Ke8 {[%clk
0:00:21.6]} 77... Kg7 {[%clk 0:00:17.9]} 78. Rc6 {[%clk 0:00:21.4]} 78... Bd4
{[%clk 0:00:13.4]} 79. Re6 {[%clk 0:00:20.9]} 79... Bf6 {[%clk 0:00:13.9]} 80.
Rd6 {[%clk 0:00:20.2]} 80... Kxg6 {[%clk 0:00:14]} 81. Rc6 {[%clk 0:00:10.2]}
81... Re7+ {[%clk 0:00:14.5]} 82. Kd8 {[%clk 0:00:11]} 82... Kf7 {[%clk
0:00:14.5]} 83. Rc7 {[%clk 0:00:10.6]} 83... Kf8 {[%clk 0:00:11.8]} 84. Rxe7
{[%clk 0:00:11]} 84... Bg5 {[%clk 0:00:10.4]} 85. Kd7 {[%clk 0:00:12.9]} 85...
Bxe7 {[%clk 0:00:10.6]} 1/2-1/2

[Event "*** MasterClass Titled Tuesday Blitz"]
[Site "Chess.com"]
[Date "2017.09.05"]
[Round "4"]
[White "JaimeSantosLatasa"]
[Black "BartoszSocko"]
[Result "0-1"]
[WhiteElo "2571"]
[BlackElo "2702"]
[TimeControl "180+2"]
[EndTime "13:51:31 PDT"]
[Termination "BartoszSocko won by resignation"]

1. d4 {[%clk 0:03:01.9]} 1... e6 {[%clk 0:03:00.7]} 2. c4 {[%clk 0:03:00.5]}
2... Nf6 {[%clk 0:03:01.8]} 3. Nf3 {[%clk 0:03:00.7]} 3... d5 {[%clk 0:03:02]}
4. g3 {[%clk 0:03:01]} 4... Bb4+ {[%clk 0:03:01.4]} 5. Bd2 {[%clk 0:03:02]} 5...
Be7 {[%clk 0:03:02.9]} 6. Bg2 {[%clk 0:03:03.1]} 6... c6 {[%clk 0:03:04.5]} 7.
O-O {[%clk 0:03:04]} 7... Nbd7 {[%clk 0:03:06]} 8. Qc2 {[%clk 0:03:04.6]} 8...
b6 {[%clk 0:03:07.3]} 9. Bf4 {[%clk 0:03:04.7]} 9... Bb7 {[%clk 0:03:08.2]} 10.
Rd1 {[%clk 0:03:05.1]} 10... Rc8 {[%clk 0:03:09.1]} 11. b3 {[%clk 0:03:02.5]}
11... c5 {[%clk 0:03:07.7]} 12. dxc5 {[%clk 0:02:58.8]} 12... Bxc5 {[%clk
0:03:05.8]} 13. Nc3 {[%clk 0:02:57.4]} 13... O-O {[%clk 0:02:55.2]} 14. Ne5
{[%clk 0:02:54.6]} 14... Nxe5 {[%clk 0:02:45.6]} 15. Bxe5 {[%clk 0:02:55.2]}
15... Bxf2+ {[%clk 0:02:45.5]} 16. Kxf2 {[%clk 0:02:52.9]} 16... Ng4+ {[%clk
0:02:46.4]} 17. Kg1 {[%clk 0:02:53.9]} 17... Nxe5 {[%clk 0:02:47.3]} 18. cxd5
{[%clk 0:02:53.3]} 18... Qc7 {[%clk 0:02:31.9]} 19. Rac1 {[%clk 0:02:47.3]}
19... Qc5+ {[%clk 0:02:32.8]} 0-1

[Event "*** MasterClass Titled Tuesday Blitz"]
[Site "Chess.com"]
[Date "2017.09.05"]
[Round "4"]
[White "ChessQueen"]
[Black "Ilja_Semjonovs"]
[Result "1-0"]
[WhiteElo "2589"]
[BlackElo "2350"]
[TimeControl "180+2"]
[EndTime "13:51:39 PDT"]
[Termination "ChessQueen won by resignation"]

1. e4 {[%clk 0:03:01.9]} 1... c5 {[%clk 0:03:00]} 2. Nf3 {[%clk 0:03:02.9]} 2...
d6 {[%clk 0:03:01.4]} 3. Bb5+ {[%clk 0:03:02.8]} 3... Bd7 {[%clk 0:03:00.3]} 4.
Bxd7+ {[%clk 0:03:03]} 4... Nxd7 {[%clk 0:03:01.4]} 5. O-O {[%clk 0:03:01.7]}
5... g6 {[%clk 0:03:02.7]} 6. c3 {[%clk 0:03:00]} 6... Bg7 {[%clk 0:03:03.7]} 7.
d4 {[%clk 0:02:59.9]} 7... cxd4 {[%clk 0:03:04.9]} 8. cxd4 {[%clk 0:03:00.6]}
8... e6 {[%clk 0:03:06.8]} 9. d5 {[%clk 0:02:54.2]} 9... exd5 {[%clk 0:03:02]}
10. Qxd5 {[%clk 0:02:52.7]} 10... Nb6 {[%clk 0:02:52.4]} 11. Qxb7 {[%clk
0:02:46.5]} 11... Ne7 {[%clk 0:02:53.2]} 12. Nc3 {[%clk 0:02:38]} 12... O-O
{[%clk 0:02:51]} 13. Bg5 {[%clk 0:02:35]} 13... f6 {[%clk 0:02:46.1]} 14. Bf4
{[%clk 0:02:33.5]} 14... Nc4 {[%clk 0:02:21.7]} 15. Qb3 {[%clk 0:02:29.3]} 1-0

[Event "*** MasterClass Titled Tuesday Blitz"]
[Site "Chess.com"]
[Date "2017.09.05"]
[Round "4"]
[White "johnathan113"]
[Black "BilodeauA"]
[Result "1-0"]
[WhiteElo "2529"]
[BlackElo "2647"]
[TimeControl "180+2"]
[EndTime "13:53:32 PDT"]
[Termination "johnathan113 won by resignation"]

1. e4 {[%clk 0:03:01.9]} 1... c5 {[%clk 0:03:00.5]} 2. Nf3 {[%clk 0:03:02.7]}
2... Nc6 {[%clk 0:03:01.5]} 3. Nc3 {[%clk 0:03:03.3]} 3... Nf6 {[%clk
0:03:00.3]} 4. Bb5 {[%clk 0:03:03.7]} 4... Qc7 {[%clk 0:03:00]} 5. O-O {[%clk
0:03:03.5]} 5... e6 {[%clk 0:02:58.2]} 6. Re1 {[%clk 0:02:58.4]} 6... Nd4 {[%clk
0:02:55]} 7. e5 {[%clk 0:02:47.1]} 7... Nxb5 {[%clk 0:02:21.6]} 8. Nxb5 {[%clk
0:02:46.7]} 8... Qc6 {[%clk 0:02:21.9]} 9. c4 {[%clk 0:02:41.4]} 9... a6 {[%clk
0:02:03.6]} 10. Nc3 {[%clk 0:02:38.9]} 10... Ng8 {[%clk 0:02:04.3]} 11. d4
{[%clk 0:02:37.7]} 11... cxd4 {[%clk 0:02:05.5]} 12. Nxd4 {[%clk 0:02:39.6]}
12... Qc7 {[%clk 0:01:59.6]} 13. Bf4 {[%clk 0:02:29.5]} 13... Ne7 {[%clk
0:01:50.7]} 14. Ndb5 {[%clk 0:02:11.8]} 14... axb5 {[%clk 0:01:49.9]} 15. Nxb5
{[%clk 0:02:13.7]} 15... Qc6 {[%clk 0:01:37.7]} 16. Nd6+ {[%clk 0:02:13.5]}
16... Kd8 {[%clk 0:01:38.5]} 17. Nxf7+ {[%clk 0:02:15.1]} 17... Kc7 {[%clk
0:01:35.5]} 18. Qd6+ {[%clk 0:02:10.9]} 18... Kb6 {[%clk 0:01:10]} 19. Be3+
{[%clk 0:02:06.2]} 19... Ka6 {[%clk 0:01:09.6]} 20. Qa3+ {[%clk 0:02:03.1]} 1-0

[Event "*** MasterClass Titled Tuesday Blitz"]
[Site "Chess.com"]
[Date "2017.09.05"]
[Round "4"]
[White "Makalexa"]
[Black "Quiet_Desperation"]
[Result "1-0"]
[WhiteElo "2152"]
[BlackElo "2214"]
[TimeControl "180+2"]
[EndTime "13:54:59 PDT"]
[Termination "Makalexa won by resignation"]

1. e4 {[%clk 0:03:01.9]} 1... e6 {[%clk 0:03:00.4]} 2. d4 {[%clk 0:03:00]} 2...
d5 {[%clk 0:03:01.5]} 3. Nc3 {[%clk 0:02:58.8]} 3... Nf6 {[%clk 0:03:01.8]} 4.
Bg5 {[%clk 0:02:57.9]} 4... Be7 {[%clk 0:03:01.8]} 5. e5 {[%clk 0:02:58.9]} 5...
Nfd7 {[%clk 0:03:02.7]} 6. Bxe7 {[%clk 0:03:00.4]} 6... Qxe7 {[%clk 0:03:03.5]}
7. f4 {[%clk 0:03:02]} 7... a6 {[%clk 0:03:04.5]} 8. Nf3 {[%clk 0:03:03.1]} 8...
c5 {[%clk 0:03:05.8]} 9. dxc5 {[%clk 0:03:04.4]} 9... Nxc5 {[%clk 0:03:06.1]}
10. Bd3 {[%clk 0:03:04.9]} 10... Nc6 {[%clk 0:03:06.2]} 11. O-O {[%clk
0:03:05.7]} 11... Nxd3 {[%clk 0:03:06.9]} 12. cxd3 {[%clk 0:03:06.2]} 12... f6
{[%clk 0:03:07.5]} 13. Rc1 {[%clk 0:02:59.8]} 13... O-O {[%clk 0:03:07.3]} 14.
Qe1 {[%clk 0:02:52.1]} 14... Bd7 {[%clk 0:03:07.1]} 15. Qg3 {[%clk 0:02:52.3]}
15... fxe5 {[%clk 0:03:06.8]} 16. Nxe5 {[%clk 0:02:47.7]} 16... Nxe5 {[%clk
0:03:07.3]} 17. fxe5 {[%clk 0:02:48.8]} 17... b5 {[%clk 0:02:59]} 18. Ne2 {[%clk
0:02:48.7]} 18... Qb4 {[%clk 0:02:50.7]} 19. Nf4 {[%clk 0:02:43.4]} 19... Rf5
{[%clk 0:02:08.3]} 20. Rc7 {[%clk 0:02:30.5]} 20... Rd8 {[%clk 0:01:37.1]} 21.
Nxe6 {[%clk 0:02:15.8]} 21... Rxf1+ {[%clk 0:01:09.9]} 22. Kxf1 {[%clk
0:02:16.5]} 22... Rf8+ {[%clk 0:01:10.6]} 23. Nxf8 {[%clk 0:02:16.3]} 23...
Qxf8+ {[%clk 0:01:11.1]} 24. Qf3 {[%clk 0:02:02.9]} 24... Bf5 {[%clk 0:01:11.1]}
25. Qxd5+ {[%clk 0:01:58]} 25... Kh8 {[%clk 0:01:11.2]} 26. Qf3 {[%clk
0:01:57.8]} 26... Bxd3+ {[%clk 0:01:11.3]} 27. Kf2 {[%clk 0:01:52.6]} 27... Bf5
{[%clk 0:01:10.3]} 28. g4 {[%clk 0:01:30.3]} 28... Qd8 {[%clk 0:01:06.3]} 29.
gxf5 {[%clk 0:01:29.6]} 1-0

[Event "*** MasterClass Titled Tuesday Blitz"]
[Site "Chess.com"]
[Date "2017.09.05"]
[Round "4"]
[White "WeiYi1999"]
[Black "goingin33"]
[Result "1-0"]
[WhiteElo "2128"]
[BlackElo "2275"]
[TimeControl "180+2"]
[EndTime "13:55:11 PDT"]
[Termination "WeiYi1999 won by checkmate"]

1. e4 {[%clk 0:03:01.9]} 1... e6 {[%clk 0:02:58.2]} 2. d4 {[%clk 0:03:01.4]}
2... d5 {[%clk 0:02:59.7]} 3. exd5 {[%clk 0:03:03.5]} 3... exd5 {[%clk
0:03:01.7]} 4. Nc3 {[%clk 0:03:04.4]} 4... Bb4 {[%clk 0:02:59.6]} 5. Bd3 {[%clk
0:03:03.6]} 5... Nf6 {[%clk 0:02:56.8]} 6. Ne2 {[%clk 0:03:03.9]} 6... O-O
{[%clk 0:02:57.1]} 7. Bg5 {[%clk 0:03:03.2]} 7... c6 {[%clk 0:02:55.2]} 8. Qd2
{[%clk 0:03:03.3]} 8... Re8 {[%clk 0:02:53.3]} 9. O-O-O {[%clk 0:03:02.4]} 9...
b5 {[%clk 0:02:48]} 10. f3 {[%clk 0:03:01.8]} 10... a5 {[%clk 0:02:48.4]} 11. g4
{[%clk 0:02:56.5]} 11... a4 {[%clk 0:02:49.2]} 12. a3 {[%clk 0:02:54.2]} 12...
Be7 {[%clk 0:02:49.9]} 13. Na2 {[%clk 0:02:46.3]} 13... Na6 {[%clk 0:02:43.6]}
14. h4 {[%clk 0:02:43.1]} 14... Rb8 {[%clk 0:02:37]} 15. Bf4 {[%clk 0:02:38.2]}
15... Bd6 {[%clk 0:02:32.4]} 16. Rde1 {[%clk 0:02:35.9]} 16... b4 {[%clk
0:02:32.4]} 17. Nxb4 {[%clk 0:02:31.2]} 17... Nxb4 {[%clk 0:02:32.9]} 18. axb4
{[%clk 0:02:33.1]} 18... Bxb4 {[%clk 0:02:32]} 19. c3 {[%clk 0:02:32.2]} 19...
Bd6 {[%clk 0:02:30.8]} 20. Bxd6 {[%clk 0:02:32.3]} 20... Qxd6 {[%clk 0:02:31.4]}
21. Qf4 {[%clk 0:02:34]} 21... Qxf4+ {[%clk 0:02:07.4]} 22. Nxf4 {[%clk
0:02:35.9]} 22... Bd7 {[%clk 0:02:09]} 23. g5 {[%clk 0:02:29.2]} 23... Rxe1+
{[%clk 0:02:05.5]} 24. Rxe1 {[%clk 0:02:31.1]} 24... Ne8 {[%clk 0:02:02.1]} 25.
Bc2 {[%clk 0:02:32.2]} 25... a3 {[%clk 0:02:00.9]} 26. bxa3 {[%clk 0:02:32.1]}
26... Kf8 {[%clk 0:02:02.1]} 27. Bxh7 {[%clk 0:02:27.7]} 27... Rb3 {[%clk
0:02:03]} 28. Kc2 {[%clk 0:02:26.1]} 28... Rxa3 {[%clk 0:02:04.1]} 29. Kb2
{[%clk 0:02:24.7]} 29... Ra5 {[%clk 0:01:59.2]} 30. Bd3 {[%clk 0:02:24.7]} 30...
Nd6 {[%clk 0:01:56.2]} 31. h5 {[%clk 0:02:24.3]} 31... Bf5 {[%clk 0:01:52.4]}
32. Bxf5 {[%clk 0:02:22.4]} 32... Nxf5 {[%clk 0:01:54.4]} 33. Nd3 {[%clk
0:02:22.7]} 33... Nd6 {[%clk 0:01:51.2]} 34. Ne5 {[%clk 0:02:21.6]} 34... Nc4+
{[%clk 0:01:52.5]} 35. Nxc4 {[%clk 0:02:21.7]} 35... dxc4 {[%clk 0:01:53]} 36.
Re5 {[%clk 0:02:20.8]} 36... Ra7 {[%clk 0:01:35.7]} 37. Rc5 {[%clk 0:02:18.6]}
37... Re7 {[%clk 0:01:35.1]} 38. Rxc4 {[%clk 0:02:18.9]} 38... Re3 {[%clk
0:01:36.2]} 39. Rxc6 {[%clk 0:02:17.9]} 39... Rxf3 {[%clk 0:01:37.6]} 40. h6
{[%clk 0:02:18.4]} 40... gxh6 {[%clk 0:01:38.9]} 41. gxh6 {[%clk 0:02:18.9]}
41... Kg8 {[%clk 0:01:40.4]} 42. d5 {[%clk 0:02:18.9]} 42... Rd3 {[%clk
0:01:39.2]} 43. c4 {[%clk 0:02:18.2]} 43... f5 {[%clk 0:01:40.7]} 44. Kc2 {[%clk
0:02:19.4]} 44... Rh3 {[%clk 0:01:40.8]} 45. Rf6 {[%clk 0:02:19]} 45... Rh4
{[%clk 0:01:42.2]} 46. Kc3 {[%clk 0:02:19.2]} 46... f4 {[%clk 0:01:43.5]} 47. d6
{[%clk 0:02:20.3]} 47... Rh3+ {[%clk 0:01:44]} 48. Kd4 {[%clk 0:02:21.1]} 48...
Rxh6 {[%clk 0:01:45.5]} 49. Rxh6 {[%clk 0:02:20.8]} 49... f3 {[%clk 0:01:47.5]}
50. d7 {[%clk 0:02:21.5]} 50... f2 {[%clk 0:01:49.5]} 51. Rf6 {[%clk 0:02:20.5]}
51... Kg7 {[%clk 0:01:51.4]} 52. d8=Q {[%clk 0:02:20.1]} 52... f1=Q {[%clk
0:01:50.8]} 53. Qe7+ {[%clk 0:02:21]} 53... Kg8 {[%clk 0:01:51.4]} 54. Rg6+
{[%clk 0:02:20]} 54... Kh8 {[%clk 0:01:53.4]} 55. Qg7# {[%clk 0:02:21.1]} 1-0